bitfinex-derivatives/quotes_BTCF0:USTF0_20250509
["timestamp","ask_amount","ask_price","bid_price","bid_amount"]
[1746780978763,0.498165,103000.0,102990.0,0.5088]
[1746780978964,0.498165,103000.0,102990.0,0.7029839]
[1746780979165,0.498165,103000.0,102990.0,0.6624]
[1746780979557,0.61877162,103000.0,102990.0,0.6594]
[1746780979964,0.71586362,103000.0,102990.0,0.004]
[1746780980157,0.1941839,102990.0,102980.0,0.3608]
[1746780980462,0.73329714,102990.0,102980.0,0.3608]
[1746780980764,0.83039714,102990.0,102980.0,0.3608]
[1746780980962,0.83039714,102990.0,102980.0,0.3578]
[1746780981264,0.83039714,102990.0,102980.0,0.3000634]
[1746780981664,0.70979052,102990.0,102980.0,0.3000634]
[1746780981964,0.71079052,102990.0,102980.0,0.3230634]
[1746780982163,0.5901839,102990.0,102980.0,0.3230634]
[1746780982359,0.71079052,102990.0,102980.0,0.3200634]
[1746780982566,0.61369052,102990.0,102980.0,0.3200634]
[1746780983659,0.73429714,102990.0,102980.0,0.2863642]
[1746780983861,0.61611052,102990.0,102980.0,0.2863642]
[1746780984762,0.61611052,102990.0,102980.0,0.023]
[1746780985165,1.09751714,102990.0,102980.0,0.02]
[1746780985373,1.09751714,102990.0,102970.0,0.1467]
[1746780985374,0.1942027,102980.0,102970.0,0.1467]
[1746780985663,0.61360932,102980.0,102970.0,0.1467]
[1746780985972,0.4930027,102980.0,102970.0,0.1467]
[1746780986268,0.61360932,102980.0,102970.0,0.5075]
[1746780986463,0.61360932,102980.0,102970.0,0.5045]
[1746780986769,0.62524614,102980.0,102970.0,0.33674854]
[1746780986960,0.65253952,102980.0,102970.0,0.33674854]
[1746780987160,0.77314614,102980.0,102970.0,0.69754854]
[1746780987770,0.77314614,102980.0,102970.0,0.69454854]
[1746780988469,0.65253952,102980.0,102970.0,0.69454854]
[1746780988683,0.77314614,102980.0,102970.0,0.33374854]
[1746780988861,0.77314614,102980.0,102970.0,0.69454854]
[1746780989167,0.77314614,102980.0,102970.0,0.33366198]
[1746780989362,0.77314614,102980.0,102960.0,0.32840691]
[1746780989363,0.1942216,102970.0,102960.0,0.32840691]
[1746780989565,0.1942404,102960.0,102950.0,0.5123199]
[1746780989757,0.77034702,102960.0,102950.0,0.5123199]
[1746780989962,1.13114702,102960.0,102950.0,0.0010199]
[1746780990164,0.1942593,102950.0,102940.0,0.3608]
[1746780990367,0.1942782,102940.0,102930.0,0.00145734]
[1746780990665,0.97517138,102940.0,102930.0,0.14895734]
[1746780990861,1.12827138,102940.0,102930.0,0.14895734]
[1746780991061,0.76747138,102940.0,102930.0,0.14895734]
[1746780991262,0.49376476,102940.0,102930.0,0.14895734]
[1746780991555,0.49376476,102940.0,102930.0,0.50975734]
[1746780991765,0.49376476,102940.0,102930.0,0.14895734]
[1746780991766,0.61437138,102940.0,102930.0,0.14895734]
[1746780991965,0.61437138,102940.0,102930.0,0.14595734]
[1746780992168,0.61437138,102940.0,102930.0,0.50675734]
[1746780992363,0.61437138,102940.0,102930.0,0.14595734]
[1746780992668,0.49376476,102940.0,102930.0,0.29925734]
[1746780992871,0.49476476,102940.0,102930.0,0.30625734]
[1746780993168,0.49676476,102940.0,102930.0,0.30625734]
[1746780993375,0.61450183,102940.0,102930.0,0.30625734]
[1746780994765,0.49389521,102940.0,102930.0,0.30325734]
[1746780994968,0.61450183,102940.0,102930.0,0.30325734]
[1746780995771,0.49389521,102940.0,102930.0,0.30325734]
[1746780995968,0.61450183,102940.0,102930.0,0.30325734]
[1746780996163,0.61163324,102940.0,102930.0,0.30325734]
[1746780996473,0.61163324,102940.0,102930.0,0.30629546]
[1746780997167,0.97243324,102940.0,102930.0,0.30629546]
[1746780997366,0.61163324,102940.0,102930.0,0.30629546]
[1746780997569,0.76813324,102940.0,102930.0,0.30325734]
[1746780997766,0.76813324,102940.0,102930.0,0.49755434]
[1746780997963,0.76813324,102940.0,102930.0,0.49759244]
[1746780998168,0.76813324,102940.0,102930.0,0.30025734]
[1746780998473,0.76813324,102940.0,102930.0,0.30329543]
[1746780999073,1.12893324,102940.0,102930.0,0.01003809]
[1746780999374,1.12406561,102940.0,102930.0,0.007]
[1746780999564,0.194297,102930.0,102920.0,0.8641834]
[1746780999766,0.194297,102930.0,102920.0,0.59851514]
[1746780999965,0.194297,102930.0,102920.0,0.69566382]
[1746781000178,0.2924354,102940.0,102930.0,0.194297]
[1746781000374,0.1952917,102940.0,102930.0,0.67874198]
[1746781000573,0.16998178,102950.0,102940.0,0.1942782]
[1746781000777,0.41282258,102950.0,102940.0,0.55811656]
[1746781000976,0.41282258,102950.0,102940.0,0.70191656]
[1746781001573,0.41282258,102950.0,102940.0,0.4534428]
[1746781001874,0.41282258,102950.0,102940.0,0.45344194]
[1746781002075,0.56745591,102950.0,102940.0,0.81424194]
[1746781002472,0.40995591,102950.0,102940.0,0.81424194]
[1746781002975,0.40995591,102950.0,102940.0,0.81524194]
[1746781002976,0.37138701,102950.0,102940.0,0.81524194]
[1746781003175,0.32281811,102950.0,102940.0,0.81524194]
[1746781003368,0.32881811,102950.0,102940.0,0.81524194]
[1746781003875,0.32881811,102950.0,102940.0,0.62096374]
[1746781003876,0.37944392,102950.0,102940.0,0.62096374]
[1746781004378,0.53794392,102950.0,102940.0,0.5238245]
[1746781004573,0.53794392,102950.0,102940.0,0.7181027]
[1746781004877,0.4173373,102950.0,102940.0,0.7181027]
[1746781005171,0.53794392,102950.0,102940.0,0.7181027]
[1746781005377,0.53794392,102950.0,102940.0,0.71810269]
[1746781005578,0.53794392,102950.0,102940.0,0.71510269]
[1746781005877,0.4173373,102950.0,102940.0,0.71510269]
[1746781006571,0.4173373,102950.0,102940.0,0.81224193]
[1746781007077,0.42547159,102950.0,102940.0,0.8122419]
[1746781007777,0.42547159,102950.0,102940.0,0.6179637]
[1746781007973,0.54607821,102950.0,102940.0,0.16002446]
[1746781008175,0.69127821,102950.0,102940.0,0.16002446]
[1746781008370,0.69127821,102950.0,102940.0,0.013187]
[1746781008570,0.68927821,102950.0,102940.0,0.012187]
[1746781008882,0.1942782,102940.0,102930.0,0.505]
[1746781009178,0.61548482,102940.0,102930.0,0.505]
[1746781009870,0.76542007,102940.0,102930.0,0.1442]
[1746781010073,0.77542007,102940.0,102930.0,0.1442]
[1746781010283,0.78442007,102940.0,102930.0,0.505]
[1746781010469,0.78442007,102940.0,102930.0,0.1442]
[1746781010667,0.78442007,102940.0,102930.0,0.505]
[1746781010876,0.66381345,102940.0,102930.0,0.505]
[1746781011077,0.66381345,102940.0,102930.0,0.699297]
[1746781011276,0.66381345,102940.0,102930.0,0.502]
[1746781011577,0.36581345,102940.0,102930.0,0.696297]
[1746781012277,0.51441345,102940.0,102930.0,0.696297]
[1746781012577,0.51441345,102940.0,102930.0,0.502]
[1746781012775,0.51154965,102940.0,102930.0,0.502]
[1746781013575,0.63215627,102940.0,102930.0,0.1412]
[1746781014076,0.63215627,102940.0,102930.0,0.1382]
[1746781014277,0.99537627,102940.0,102930.0,0.1382]
[1746781014482,0.194297,102930.0,102920.0,0.3163]
[1746781014682,0.60910362,102930.0,102920.0,0.3163]
[1746781014980,0.60910362,102930.0,102920.0,0.19896088]
[1746781015175,0.75570362,102930.0,102920.0,0.1586]
[1746781015481,0.7732785,102930.0,102920.0,0.1586]
[1746781015681,0.7812785,102930.0,102920.0,0.1556]
[1746781015881,0.77836407,102930.0,102920.0,0.1556]
[1746781016084,0.1943159,102920.0,102910.0,0.05591188]
[1746781016280,0.1943159,102920.0,102910.0,0.015551]
[1746781016281,0.8467159,102920.0,102910.0,0.015551]
[1746781016480,0.96732252,102920.0,102910.0,0.015551]
[1746781017083,0.1943348,102910.0,102900.0,0.1]
[1746781017283,1.11964142,102910.0,102900.0,0.1]
[1746781017677,0.9990348,102910.0,102900.0,0.1]
[1746781017877,1.11677858,102910.0,102900.0,0.0121001]
[1746781018074,0.1943726,102890.0,102880.0,0.16067871]
[1746781018387,0.1943726,102890.0,102880.0,0.00247871]
[1746781018388,0.31497922,102890.0,102880.0,0.00247871]
[1746781018583,0.1943726,102890.0,102880.0,0.0010206]
[1746781018787,0.1943726,102890.0,102880.0,1.07681461]
[1746781018983,0.1943726,102890.0,102880.0,0.95620799]
[1746781019177,0.31497922,102890.0,102880.0,0.77656193]
[1746781019483,0.35145718,102890.0,102880.0,0.77456193]
[1746781019687,0.6298638,102890.0,102880.0,0.37654544]
[1746781019979,0.50925718,102890.0,102880.0,0.37654544]
[1746781020188,0.6398638,102890.0,102880.0,0.37554544]
[1746781020572,0.6398638,102890.0,102880.0,0.3608]
[1746781020879,0.1944104,102870.0,102860.0,0.5053]
[1746781021081,0.1944104,102870.0,102860.0,0.54566088]
[1746781021378,0.31501702,102870.0,102860.0,0.54566088]
[1746781021580,0.5012104,102870.0,102860.0,0.5053]
[1746781021881,0.5012104,102870.0,102860.0,0.3608]
[1746781022087,0.5072104,102870.0,102860.0,0.3608]
[1746781022287,0.1944293,102860.0,102850.0,0.54566088]
[1746781022478,0.4966293,102860.0,102850.0,0.6552]
[1746781022677,0.4966293,102860.0,102850.0,0.69256088]
[1746781022977,0.49371288,102860.0,102850.0,0.70689067]
[1746781023575,0.49371288,102860.0,102850.0,0.90133887]
[1746781023986,0.49471288,102860.0,102850.0,0.99956311]
[1746781024186,0.61245857,102860.0,102850.0,0.99956311]
[1746781024388,0.49185195,102860.0,102850.0,0.99956311]
[1746781024590,0.49285195,102860.0,102850.0,0.99956311]
[1746781024884,0.002,102860.0,102850.0,1.12016973]
[1746781025382,0.2074293,102860.0,102850.0,0.99856311]
[1746781025683,0.025,102860.0,102850.0,0.99556311]
[1746781025883,0.025,102860.0,102850.0,1.49339373]
[1746781026075,0.025,102860.0,102850.0,1.12278711]
[1746781026282,0.012,102860.0,102850.0,1.12278711]
[1746781026482,0.023,102860.0,102850.0,1.24339373]
[1746781026689,0.023,102860.0,102850.0,1.12278711]
[1746781026988,0.2174293,102860.0,102850.0,1.08242623]
[1746781027176,0.21256932,102860.0,102850.0,1.08242623]
[1746781027381,0.01814002,102860.0,102850.0,1.20303285]
[1746781027582,0.21256932,102860.0,102850.0,1.08242623]
[1746781027881,0.2134293,102860.0,102850.0,1.20303285]
[1746781028079,0.2134293,102860.0,102850.0,0.98520223]
[1746781028485,0.3681293,102860.0,102850.0,0.95520223]
[1746781028788,0.3661293,102860.0,102850.0,0.98220223]
[1746781029284,0.3661293,102860.0,102850.0,1.07942623]
[1746781029586,0.017,102860.0,102850.0,1.20003285]
[1746781030483,0.01414098,102860.0,102850.0,1.61593285]
[1746781030685,0.2430004,102880.0,102870.0,0.1944104]
[1746781030884,0.2430004,102880.0,102870.0,0.5552104]
[1746781031275,0.3994004,102880.0,102870.0,0.8595104]
[1746781031477,0.3994004,102880.0,102870.0,0.95673464]
[1746781031990,0.4094004,102880.0,102870.0,0.95373464]
[1746781032395,0.4194004,102880.0,102870.0,0.95473464]
[1746781033297,0.41654233,102880.0,102870.0,0.95473464]
[1746781033690,0.41654233,102880.0,102870.0,0.99509552]
[1746781033889,0.1764,102880.0,102870.0,0.99509552]
[1746781034189,0.02,102880.0,102870.0,1.11570214]
[1746781034596,0.02,102880.0,102870.0,0.99509552]
[1746781034892,0.2143915,102880.0,102870.0,0.99209552]
[1746781035394,0.3649915,102880.0,102870.0,0.99209552]
[1746781036289,0.36213438,102880.0,102870.0,0.99209552]
[1746781037487,0.51603438,102880.0,102870.0,0.99209552]
[1746781037896,0.36213438,102880.0,102870.0,0.98909552]
[1746781039085,0.51603438,102880.0,102870.0,0.98909552]
[1746781039789,0.31878672,102880.0,102870.0,0.98909552]
[1746781039991,0.01428672,102880.0,102870.0,1.47050214]
[1746781040193,0.01428672,102880.0,102870.0,1.59110876]
[1746781040387,0.65169575,102900.0,102890.0,0.1943726]
[1746781040388,0.09673745,102900.0,102890.0,0.1943726]
[1746781040588,0.09673745,102900.0,102890.0,1.07657922]
[1746781040789,0.09673745,102900.0,102890.0,1.46786722]
[1746781041093,0.11885859,102910.0,102900.0,0.23471458]
[1746781041293,0.49675356,102930.0,102920.0,0.23467678]
[1746781041488,0.49185356,102930.0,102920.0,0.7160834]
[1746781041799,0.49185356,102930.0,102920.0,1.19153839]
[1746781042094,0.14605656,102930.0,102920.0,1.48563839]
[1746781042287,0.14605656,102930.0,102920.0,1.36503177]
[1746781042597,0.34035356,102930.0,102920.0,1.51903177]
[1746781042796,0.49185356,102930.0,102920.0,0.40875499]
[1746781042995,0.92666018,102930.0,102920.0,0.26125499]
[1746781043291,0.92666018,102930.0,102920.0,0.45257089]
[1746781043590,0.81305356,102930.0,102920.0,0.96287089]
[1746781043991,0.666997,102930.0,102920.0,0.96287089]
[1746781044595,0.659997,102930.0,102920.0,0.96187089]
[1746781044899,0.663997,102930.0,102920.0,0.96187089]
[1746781045092,0.1615,102930.0,102920.0,1.08247751]
[1746781045392,0.1615,102930.0,102920.0,0.96187089]
[1746781045694,0.1615,102930.0,102920.0,1.12283839]
[1746781045888,0.355797,102930.0,102920.0,1.00223177]
[1746781046297,0.355797,102930.0,102920.0,1.41813177]
[1746781046595,0.35294369,102930.0,102920.0,1.41813177]
[1746781046798,0.01,102930.0,102920.0,1.12283804]
[1746781046988,0.01,102930.0,102920.0,1.81459804]
[1746781047289,0.00342,102940.0,102930.0,0.23465788]
[1746781047490,0.00342,102940.0,102930.0,1.0114645]
[1746781047799,0.14605656,102950.0,102940.0,0.1942782]
[1746781047995,0.1432042,102950.0,102940.0,1.17079064]
[1746781048295,0.63095078,102960.0,102950.0,0.1942593]
[1746781048498,0.58238728,102960.0,102950.0,0.89082018]
[1746781048790,0.58238728,102960.0,102950.0,0.89385736]
[1746781049199,0.58238728,102960.0,102950.0,0.99098717]
[1746781049695,0.73203587,102960.0,102950.0,0.99098717]
[1746781049896,0.73603587,102960.0,102950.0,0.99098717]
[1746781050287,0.74003587,102960.0,102950.0,0.69558717]
[1746781050495,0.89861094,102960.0,102950.0,0.46096699]
[1746781050690,0.1942593,102950.0,102940.0,1.20392945]
[1746781050893,0.1942593,102950.0,102940.0,1.01756857]
[1746781050894,0.6514593,102950.0,102940.0,1.01756857]
[1746781051096,0.64860884,102950.0,102940.0,1.11469838]
[1746781051288,0.64860884,102950.0,102940.0,0.93992279]
[1746781051888,0.65160884,102950.0,102940.0,1.08592279]
[1746781052097,0.003,102950.0,102940.0,1.60529786]
[1746781052293,0.003,102950.0,102940.0,1.35029786]
[1746781052701,0.19440978,102950.0,102940.0,1.35029786]
[1746781052901,0.19440978,102950.0,102940.0,1.19172279]
[1746781053102,0.34000978,102950.0,102940.0,1.19172279]
[1746781053499,0.38301376,102960.0,102950.0,0.23462018]
[1746781053703,0.52861376,102960.0,102950.0,0.91222018]
[1746781054103,0.52576519,102960.0,102950.0,0.91222018]
[1746781054798,0.52576519,102960.0,102950.0,1.00934999]
[1746781055203,0.23596519,102960.0,102950.0,1.00934999]
[1746781055594,0.38356519,102960.0,102950.0,1.00934999]
[1746781055796,0.38071757,102960.0,102950.0,1.00934999]
[1746781056103,0.15202,102960.0,102950.0,1.16792506]
[1746781056399,0.3462604,102960.0,102950.0,1.16792506]
[1746781056595,0.00642,102960.0,102950.0,1.16792506]
[1746781056796,0.00642,102960.0,102950.0,1.18792506]
[1746781056991,0.00642,102960.0,102950.0,1.28505306]
[1746781057400,0.00357332,102960.0,102950.0,1.28505306]
[1746781058197,0.00357332,102960.0,102950.0,1.70095306]
[1746781058898,0.00072759,102960.0,102950.0,1.71854064]
[1746781059915,0.00072759,102960.0,102950.0,1.81854064]
[1746781060207,0.00072759,102960.0,102950.0,1.82854064]
[1746781060595,0.001,102970.0,102950.0,1.82854064]
[1746781060596,0.4952855,102980.0,102970.0,0.23458248]
[1746781060801,0.4952855,102980.0,102970.0,0.95618248]
[1746781061107,0.54672499,103000.0,102990.0,0.23212478]
[1746781061500,0.54672499,103000.0,102990.0,0.39002478]
[1746781061906,0.40109449,103000.0,102990.0,0.66025698]
[1746781062408,0.39825065,103000.0,102990.0,0.86248191]
[1746781062708,0.54765065,103000.0,102990.0,1.01938831]
[1746781063715,0.69555065,103000.0,102990.0,1.01938831]
[1746781063897,0.69955065,103000.0,102990.0,1.01938831]
[1746781064095,0.69955065,103000.0,102990.0,0.66730441]
[1746781064300,0.69670775,103000.0,102990.0,0.34708831]
[1746781064799,0.58979016,103000.0,102990.0,0.32726788]
[1746781065002,0.58979016,103000.0,102990.0,0.42435997]
[1746781065806,0.5869482,103000.0,102990.0,0.42435997]
[1746781066201,0.5869482,103000.0,102990.0,0.43879743]
[1746781066706,0.9477482,103000.0,102990.0,0.11152955]
[1746781066912,1.35632327,103000.0,102990.0,0.01443746]
[1746781067205,0.1942027,102980.0,102970.0,0.3608]
[1746781067413,0.19136168,102980.0,102970.0,0.5550216]
[1746781067608,0.50026168,102980.0,102970.0,0.5550216]
[1746781067910,0.50026168,102980.0,102970.0,0.98633254]
[1746781068112,0.50026168,102980.0,102970.0,0.82163254]
[1746781068605,0.50126168,102980.0,102970.0,0.82163254]
[1746781068811,0.50126168,102980.0,102970.0,0.29133254]
[1746781069113,0.4994216,102980.0,102970.0,0.65213254]
[1746781069713,0.4994216,102980.0,102970.0,0.98633254]
[1746781070011,0.4994216,102980.0,102970.0,0.65213254]
[1746781070212,0.6576216,102980.0,102970.0,0.66670988]
[1746781070413,0.77840187,102980.0,102970.0,0.47248828]
[1746781070715,0.77556274,102980.0,102970.0,0.01457734]
[1746781071010,0.1942216,102970.0,102960.0,0.55649747]
[1746781071215,0.5177216,102970.0,102960.0,0.55649747]
[1746781071412,0.8785216,102970.0,102960.0,0.29280841]
[1746781071607,0.99930187,102970.0,102960.0,0.00145707]
[1746781071807,0.8785216,102970.0,102960.0,0.19569747]
[1746781072104,0.8785216,102970.0,102960.0,0.29281785]
[1746781072311,0.8785216,102970.0,102960.0,0.62701785]
[1746781072509,0.5177216,102970.0,102960.0,0.98781785]
[1746781072711,0.67936764,102970.0,102960.0,0.62701785]
[1746781072912,0.67936764,102970.0,102960.0,0.98781785]
[1746781073613,0.67936764,102970.0,102960.0,1.00272774]
[1746781073814,0.67652945,102970.0,102960.0,1.00272774]
[1746781075412,0.67652945,102970.0,102960.0,0.99972774]
[1746781076418,0.70321912,102970.0,102960.0,1.17344853]
[1746781076614,0.34579752,102970.0,102960.0,1.01488504]
[1746781076808,0.54001912,102970.0,102960.0,1.01792171]
[1746781077120,0.69611912,102970.0,102960.0,1.01792171]
[1746781077410,0.69611912,102970.0,102960.0,0.68626464]
[1746781077612,0.69611912,102970.0,102960.0,0.49696464]
[1746781077816,0.69328186,102970.0,102960.0,1.02576464]
[1746781078109,0.34296026,102970.0,102960.0,1.18432813]
[1746781078314,0.53718186,102970.0,102960.0,1.18432813]
[1746781078517,0.53718186,102970.0,102960.0,1.02576464]
[1746781078706,0.53718186,102970.0,102960.0,1.01060723]
[1746781078909,0.69328186,102970.0,102960.0,1.01060723]
[1746781079415,0.69328186,102970.0,102960.0,1.00760723]
[1746781080411,0.66634783,102970.0,102960.0,0.48890045]
[1746781080814,0.50778434,102970.0,102960.0,0.37974645]
[1746781081005,0.66634783,102970.0,102960.0,0.2764378]
[1746781081211,0.1942782,102940.0,102930.0,0.7073274]
[1746781081517,0.5550782,102940.0,102930.0,0.70478836]
[1746781081719,0.3571782,102940.0,102930.0,1.06558836]
[1746781081912,0.3571782,102940.0,102930.0,1.16273704]
[1746781082409,0.002,102940.0,102930.0,1.33830023]
[1746781082613,0.1972782,102940.0,102930.0,1.36130023]
[1746781083111,0.1962782,102940.0,102930.0,1.34030023]
[1746781083419,0.002,102940.0,102930.0,1.33730023]
[1746781083607,0.002,102940.0,102930.0,1.17873674]
[1746781083807,0.002,102940.0,102930.0,1.44444823]
[1746781084120,0.5773171,102960.0,102950.0,0.1942593]
[1746781084414,0.1723,102960.0,102950.0,0.7314538]
[1746781084720,0.1723,102960.0,102950.0,1.18940248]
[1746781084911,0.1698,102970.0,102960.0,0.1942404]
[1746781085116,0.65526489,102970.0,102960.0,0.88437719]
[1746781085516,0.65526489,102970.0,102960.0,0.981507]
[1746781085716,0.65526489,102970.0,102960.0,0.99630059]
[1746781085918,0.29407867,102970.0,102960.0,1.15486408]
[1746781086223,0.12177867,102970.0,102960.0,1.57076408]
[1746781086420,0.12177867,102970.0,102960.0,1.59076408]
[1746781086717,0.12277867,102970.0,102960.0,1.58776408]
[1746781086914,0.83636376,102970.0,102960.0,0.01783038]
[1746781087119,0.1942782,102940.0,102930.0,0.17285555]
[1746781087310,0.1942782,102940.0,102930.0,0.17175555]
[1746781087511,0.52154169,102940.0,102930.0,0.11157593]
[1746781088017,0.88234169,102940.0,102930.0,0.11157593]
[1746781088212,0.8962782,102940.0,102930.0,0.11157593]
[1746781088414,0.8982782,102940.0,102930.0,0.12857593]
[1746781088714,0.8982782,102940.0,102930.0,0.32287293]
[1746781088914,0.8982782,102940.0,102930.0,0.13057593]
[1746781090319,0.53464376,102940.0,102930.0,0.13057593]
[1746781090616,0.53464376,102940.0,102930.0,0.28767593]
[1746781091017,0.53464376,102940.0,102930.0,0.27367593]
[1746781091018,0.53264376,102940.0,102930.0,0.27367593]
[1746781091224,0.89344376,102940.0,102930.0,0.11657593]
[1746781091419,0.89344376,102940.0,102930.0,0.44607593]
[1746781091721,0.89344376,102940.0,102930.0,0.44307593]
[1746781092117,0.89344376,102940.0,102930.0,0.63737293]
[1746781092609,0.89344376,102940.0,102930.0,0.44307593]
[1746781093311,1.04917375,102940.0,102930.0,0.11357593]
[1746781093516,0.89061026,102940.0,102930.0,0.30787293]
[1746781093717,0.89061026,102940.0,102930.0,0.43687593]
[1746781095023,0.89061026,102940.0,102930.0,0.43387593]
[1746781095524,0.89061026,102940.0,102930.0,0.62817293]
[1746781095709,0.52981026,102940.0,102930.0,0.62817293]
[1746781096526,0.35731026,102940.0,102930.0,0.62817293]
[1746781096916,0.18861026,102940.0,102930.0,0.98897293]
[1746781097624,0.18577769,102940.0,102930.0,0.98897293]
[1746781098323,0.35107769,102940.0,102930.0,0.98897293]
[1746781099028,0.35107769,102940.0,102930.0,0.99201053]
[1746781099326,0.35107769,102940.0,102930.0,0.98901053]
[1746781099525,0.35107769,102940.0,102930.0,1.00419839]
[1746781100117,0.35207769,102940.0,102930.0,1.00219839]
[1746781100316,0.35207769,102940.0,102930.0,1.41809839]
[1746781100525,0.35207769,102940.0,102930.0,1.42892562]
[1746781100727,0.35307769,102940.0,102930.0,1.42592562]
[1746781101423,0.35024606,102940.0,102930.0,1.42592562]
[1746781101627,0.35024606,102940.0,102930.0,1.05429839]
[1746781102127,0.52234606,102940.0,102930.0,1.05429839]
[1746781102622,0.52234606,102940.0,102930.0,1.42598203]
[1746781103025,0.51951536,102940.0,102930.0,1.42598203]
[1746781103226,0.51951536,102940.0,102930.0,1.06518203]
[1746781103424,0.51951536,102940.0,102930.0,1.42598203]
[1746781104430,0.51951536,102940.0,102930.0,1.42298203]
[1746781105030,0.61695015,102940.0,102930.0,1.42298203]
[1746781105724,0.61695015,102940.0,102930.0,1.06242124]
[1746781105925,0.61695015,102940.0,102930.0,1.42022124]
[1746781106132,0.61695015,102940.0,102930.0,1.05942124]
[1746781106429,0.61695015,102940.0,102930.0,1.42022124]
[1746781107331,0.61412039,102940.0,102930.0,1.05942124]
[1746781107521,0.61412039,102940.0,102930.0,1.40909838]
[1746781107721,0.61412039,102940.0,102930.0,1.04829838]
[1746781107929,0.61412039,102940.0,102930.0,1.40909838]
[1746781108927,0.61412039,102940.0,102930.0,1.40609838]
[1746781109233,0.61412039,102940.0,102930.0,1.40609839]
[1746781109825,0.61654039,102940.0,102930.0,1.04529839]
[1746781110028,0.61654039,102940.0,102930.0,1.40609839]
[1746781110224,0.61654039,102940.0,102930.0,1.40309839]
[1746781110935,0.61654039,102940.0,102930.0,1.41755697]
[1746781111129,0.61654039,102940.0,102930.0,1.41451938]
[1746781111328,0.73741069,102940.0,102930.0,0.12022238]
[1746781111528,0.90181069,102940.0,102930.0,0.12022238]
[1746781111722,0.77811156,102940.0,102930.0,0.31451938]
[1746781111927,0.77811156,102940.0,102930.0,0.46223152]
[1746781112131,0.77811156,102940.0,102930.0,0.61903152]
[1746781112733,0.89898186,102940.0,102930.0,0.46223152]
[1746781112935,1.25978186,102940.0,102930.0,0.47713647]
[1746781113130,1.13891156,102940.0,102930.0,0.47413647]
[1746781113439,1.136007,102940.0,102930.0,0.47413647]
[1746781114131,1.136007,102940.0,102930.0,0.63123647]
[1746781114631,1.136007,102940.0,102930.0,0.62823647]
[1746781114839,1.13310146,102940.0,102930.0,0.62823647]
[1746781115934,0.77230146,102940.0,102930.0,0.63127434]
[1746781116239,0.60790146,102940.0,102930.0,0.63127434]
[1746781116434,0.60507357,102940.0,102930.0,0.99207434]
[1746781116632,0.43297357,102940.0,102930.0,1.11294464]
[1746781116834,0.3316618,102940.0,102930.0,0.99207434]
[1746781117035,0.1663618,102940.0,102930.0,1.54884464]
[1746781117537,0.1663618,102940.0,102930.0,1.42797434]
[1746781117739,0.1663618,102940.0,102930.0,1.54884464]
[1746781117927,0.1653618,102940.0,102930.0,3.04884422]
[1746781118133,0.16245527,102940.0,102930.0,3.14771452]
[1746781118329,0.14535026,102950.0,102940.0,0.1942782]
[1746781118633,0.14535026,102950.0,102940.0,1.28838595]
[1746781118833,0.14535026,102950.0,102940.0,1.4004309]
[1746781119137,0.14535026,102950.0,102940.0,1.59757014]
[1746781119533,0.14535026,102950.0,102940.0,1.78757014]
[1746781119733,0.1435233,102950.0,102940.0,1.59757014]
[1746781119938,0.1445233,102950.0,102940.0,1.59757014]
[1746781120135,0.4018679,102980.0,102970.0,0.1942216]
[1746781120343,0.52094515,102980.0,102970.0,0.97395839]
[1746781120638,0.52094515,102980.0,102970.0,1.31866334]
[1746781120840,0.68864515,102980.0,102970.0,1.41580258]
[1746781121236,0.68573764,102980.0,102970.0,1.41280258]
[1746781122538,0.32583494,102980.0,102970.0,1.54957204]
[1746781122744,0.32583494,102980.0,102970.0,1.57957204]
[1746781122940,0.51721161,102980.0,102970.0,1.57957204]
[1746781123446,0.68731161,102980.0,102970.0,1.57957204]
[1746781123748,0.68731161,102980.0,102970.0,1.45870174]
[1746781124245,0.68731161,102980.0,102970.0,1.04280174]
[1746781124446,0.68440311,102980.0,102970.0,1.03980174]
[1746781124642,0.61235383,102980.0,102970.0,1.03980174]
[1746781124845,0.61235383,102980.0,102970.0,1.03980129]
[1746781125344,0.41815113,102980.0,102970.0,1.03980129]
[1746781125646,0.24805113,102980.0,102970.0,1.16067159]
[1746781125848,0.44225383,102980.0,102970.0,1.03980129]
[1746781126042,0.60132873,102980.0,102970.0,1.03980129]
[1746781126746,0.77472873,102980.0,102970.0,1.03980111]
[1746781126943,0.77472873,102980.0,102970.0,1.14576646]
[1746781126944,0.40712603,102980.0,102970.0,1.14576646]
[1746781127135,0.24522603,102980.0,102970.0,1.14576646]
[1746781127339,0.09959317,102980.0,102970.0,1.19319616]
[1746781127538,0.09959317,102980.0,102970.0,1.72996646]
[1746781127741,0.29088638,102980.0,102970.0,1.60609616]
[1746781127941,0.07312107,102980.0,102970.0,1.74214753]
[1746781128449,0.07312107,102980.0,102970.0,1.62127723]
[1746781128644,0.07312107,102980.0,102970.0,1.74214753]
[1746781129347,0.0702969,102980.0,102970.0,1.74214753]
[1746781130350,0.0702969,102980.0,102970.0,2.09925955]
[1746781130752,0.06738643,102980.0,102970.0,2.09625955]
[1746781130953,0.09910368,102990.0,102980.0,0.1942027]
[1746781131255,0.09910368,102990.0,102980.0,1.71378392]
[1746781131755,0.09910368,102990.0,102980.0,1.81089486]
[1746781131945,0.09910368,102990.0,102980.0,2.99089486]
[1746781132145,0.09910368,102990.0,102980.0,2.90089486]
[1746781132345,0.10110368,102990.0,102980.0,2.89789486]
[1746781132547,0.09819222,102990.0,102980.0,2.89789486]
[1746781132747,0.10019222,102990.0,102980.0,2.89789486]
[1746781133051,0.09819222,102990.0,102980.0,2.89789486]
[1746781133254,0.09619222,102990.0,102980.0,2.89989486]
[1746781134249,0.09336898,102990.0,102980.0,2.89989486]
[1746781134455,0.09336898,102990.0,102980.0,2.88902456]
[1746781134648,0.09336898,102990.0,102980.0,3.00989486]
[1746781135158,0.09336898,102990.0,102980.0,2.88902456]
[1746781135763,0.6180363,103000.0,102990.0,0.1941839]
[1746781136055,0.61512385,103000.0,102990.0,0.93881375]
[1746781136257,0.61512385,103000.0,102990.0,1.36989482]
[1746781136457,0.61512385,103000.0,102990.0,1.46699633]
[1746781136657,0.61512385,103000.0,102990.0,1.10619633]
[1746781136850,0.77592385,103000.0,102990.0,1.46699633]
[1746781137046,0.77592385,103000.0,102990.0,1.45620266]
[1746781137255,0.77592385,103000.0,102990.0,1.46734952]
[1746781137455,0.77592385,103000.0,102990.0,1.48227821]
[1746781137850,0.89679415,103000.0,102990.0,1.15927821]
[1746781138050,1.13672385,103000.0,102990.0,0.79847821]
[1746781138248,0.77592385,103000.0,102990.0,1.15927821]
[1746781138451,0.77692385,103000.0,102990.0,1.15927821]
[1746781138861,1.13772385,103000.0,102990.0,0.60429431]
[1746781139059,0.77692385,103000.0,102990.0,0.79847821]
[1746781139255,1.13772385,103000.0,102990.0,0.74847821]
[1746781139658,1.13772385,103000.0,102990.0,0.74547821]
[1746781140657,1.13772385,103000.0,102990.0,0.74543478]
[1746781140858,1.13772385,103000.0,102990.0,0.52521876]
[1746781141065,1.25859415,103000.0,102990.0,0.53632837]
[1746781141257,1.25859415,103000.0,102990.0,0.43922686]